[Event "Titled Tuesday Blitz May 16 Early 2023"]
[White "Bettalli, Francesco"]
[Black "Colbow, Collin"]
[WhiteFideId "2816453"]
[BlackFideId "16201132"]
[WhiteElo "2216"]
[BlackElo "2351"]
[Result "1/2-1/2"]
[Round "08"]
[TimeControl "180+2"]
[Date "2023.05.16"]
[WhiteClock "0:01:04"]
[BlackClock "0:00:14"]

1. d4 {[%clk 0:03:00]}  d5 {[%clk 0:02:57]} 2. Nc3 {[%clk 0:03:01]}  Nf6 {[%clk 0:02:53]} 3. Bf4 {[%clk 0:03:01]}  a6 {[%clk 0:02:53]} 4. e3 {[%clk 0:03:00]}  c5 {[%clk 0:02:52]} 5. dxc5 {[%clk 0:03:01]}  e6 {[%clk 0:02:52]} 6. b4 {[%clk 0:02:59]}  Nc6 {[%clk 0:02:50]} 7. a3 {[%clk 0:02:59]}  e5 {[%clk 0:02:47]} 8. Bg5 {[%clk 0:02:59]}  d4 {[%clk 0:02:26]} 9. Na4 {[%clk 0:02:45]}  Be7 {[%clk 0:02:19]} 10. Nb6 {[%clk 0:02:41]}  Rb8 {[%clk 0:02:13]} 11. Nf3 {[%clk 0:02:42]}  Bf5 {[%clk 0:02:00]} 12. Bc4 {[%clk 0:02:38]}  dxe3 {[%clk 0:01:55]} 13. Bxe3 {[%clk 0:02:34]}  Qxd1+ {[%clk 0:01:51]} 14. Kxd1 {[%clk 0:02:34]}  Ng4 {[%clk 0:01:31]} 15. Re1 {[%clk 0:02:33]}  O-O {[%clk 0:01:21]} 16. Kc1 {[%clk 0:02:30]}  Nxe3 {[%clk 0:01:19]} 17. fxe3 {[%clk 0:02:29]}  a5 {[%clk 0:01:10]} 18. c3 {[%clk 0:02:26]}  axb4 {[%clk 0:01:03]} 19. axb4 {[%clk 0:02:24]}  Rfd8 {[%clk 0:00:46]} 20. Kb2 {[%clk 0:02:21]}  g5 {[%clk 0:00:36]} 21. Rad1 {[%clk 0:02:20]}  g4 {[%clk 0:00:36]} 22. Nd2 {[%clk 0:02:15]}  Bg5 {[%clk 0:00:36]} 23. Nd5 {[%clk 0:02:11]}  e4 {[%clk 0:00:30]} 24. Nb3 {[%clk 0:02:06]}  Ne5 {[%clk 0:00:29]} 25. Be2 {[%clk 0:02:02]}  Be6 {[%clk 0:00:16]} 26. c4 {[%clk 0:01:53]}  Bxd5 {[%clk 0:00:10]} 27. cxd5 {[%clk 0:01:54]}  Bxe3 {[%clk 0:00:09]} 28. d6 {[%clk 0:01:44]}  Bf2 {[%clk 0:00:08]} 29. Rf1 {[%clk 0:01:43]}  e3 {[%clk 0:00:08]} 30. Nd4 {[%clk 0:01:41]}  h5 {[%clk 0:00:07]} 31. Nf5 {[%clk 0:01:39]}  Kf8 {[%clk 0:00:04]} 32. Kc3 {[%clk 0:01:36]}  b6 {[%clk 0:00:05]} 33. Rd5 {[%clk 0:01:30]}  f6 {[%clk 0:00:04]} 34. Rxe5 {[%clk 0:01:25]}  fxe5 {[%clk 0:00:04]} 35. c6 {[%clk 0:01:26]}  Rbc8 {[%clk 0:00:04]} 36. b5 {[%clk 0:01:25]}  Kf7 {[%clk 0:00:03]} 37. Ra1 {[%clk 0:01:23]}  Kf6 {[%clk 0:00:03]} 38. Bd3 {[%clk 0:01:24]}  e2 {[%clk 0:00:02]} 39. Kd2 {[%clk 0:01:17]}  e1=Q+ {[%clk 0:00:02]} 40. Rxe1 {[%clk 0:01:18]}  Bxe1+ {[%clk 0:00:03]} 41. Kxe1 {[%clk 0:01:19]}  e4 {[%clk 0:00:02]} 42. Bxe4 {[%clk 0:01:16]}  Ke5 {[%clk 0:00:03]} 43. d7 {[%clk 0:01:15]}  Rc7 {[%clk 0:00:03]} 44. Bd3 {[%clk 0:01:13]}  Rcxd7 {[%clk 0:00:03]} 45. cxd7 {[%clk 0:01:12]}  Rxd7 {[%clk 0:00:04]} 46. Ke2 {[%clk 0:01:13]}  Rxd3 {[%clk 0:00:04]} 47. Kxd3 {[%clk 0:01:14]}  Kxf5 {[%clk 0:00:04]} 48. Kd4 {[%clk 0:01:13]}  Ke6 {[%clk 0:00:05]} 49. Ke4 {[%clk 0:01:13]}  Kd6 {[%clk 0:00:05]} 50. Kd4 {[%clk 0:01:14]}  Ke6 {[%clk 0:00:05]} 51. h4 {[%clk 0:01:10]}  gxh3 {[%clk 0:00:05]} 52. gxh3 {[%clk 0:01:10]}  Kd6 {[%clk 0:00:03]} 53. h4 {[%clk 0:01:10]}  Ke6 {[%clk 0:00:03]} 54. Ke4 {[%clk 0:01:10]}  Kd6 {[%clk 0:00:03]} 55. Kf5 {[%clk 0:01:01]}  Kc5 {[%clk 0:00:04]} 56. Kg5 {[%clk 0:01:02]}  Kxb5 {[%clk 0:00:05]} 57. Kxh5 {[%clk 0:01:03]}  Kc5 {[%clk 0:00:03]} 58. Kg4 {[%clk 0:01:03]}  b5 {[%clk 0:00:03]} 59. h5 {[%clk 0:01:04]}  b4 {[%clk 0:00:03]} 60. h6 {[%clk 0:01:05]}  b3 {[%clk 0:00:04]} 61. h7 {[%clk 0:01:06]}  b2 {[%clk 0:00:04]} 62. h8=Q {[%clk 0:01:07]}  b1=Q {[%clk 0:00:05]} 63. Qe5+ {[%clk 0:01:06]}  Kc4 {[%clk 0:00:05]} 64. Qc7+ {[%clk 0:01:06]}  Kb3 {[%clk 0:00:05]} 65. Qb6+ {[%clk 0:01:06]}  Kc2 {[%clk 0:00:05]} 66. Qf2+ {[%clk 0:01:05]}  Kb3 {[%clk 0:00:05]} 67. Qb6+ {[%clk 0:01:04]}  Kc2 {[%clk 0:00:06]} 68. Qc5+ {[%clk 0:01:05]}  Kb2 {[%clk 0:00:07]} 69. Qb4+ {[%clk 0:01:03]}  Kc2 {[%clk 0:00:08]} 70. Qe4+ {[%clk 0:01:03]}  Kb2 {[%clk 0:00:08]} 71. Qb4+ {[%clk 0:01:04]}  Kc2 {[%clk 0:00:09]} 72. Qc4+ {[%clk 0:01:04]}  Kb2 {[%clk 0:00:10]} 73. Qd4+ {[%clk 0:01:05]}  Kc2 {[%clk 0:00:11]} 74. Qf2+ {[%clk 0:01:04]}  Kb3 {[%clk 0:00:11]} 75. Qf7+ {[%clk 0:01:04]}  Kb2 {[%clk 0:00:12]} 76. Qb7+ {[%clk 0:01:03]}  Kc2 {[%clk 0:00:13]} 77. Qe4+ {[%clk 0:01:04]}  Kb2 {[%clk 0:00:14]} 78. Qxb1+ {[%clk 0:01:04]}  Kxb1 {[%clk 0:00:14]} 1/2-1/2


[Site "https://www.chess.com"]

[Event "Titled Tuesday Blitz May 16 Early 2023"]
[White "Preotu, Razvan"]
[Black "Ansh M Shah"]
[WhiteFideId "2613280"]
[BlackFideId "25033379"]
[WhiteElo "2407"]
[BlackElo "2084"]
[Result "1-0"]
[Round "08"]
[TimeControl "180+2"]
[Date "2023.05.16"]
[WhiteClock "0:00:16"]
[BlackClock "0:00:00"]

1. e4 {[%clk 0:03:00]}  c6 {[%clk 0:02:59]} 2. Nc3 {[%clk 0:03:00]}  d5 {[%clk 0:03:00]} 3. Nf3 {[%clk 0:03:01]}  Bg4 {[%clk 0:02:59]} 4. h3 {[%clk 0:03:01]}  Bxf3 {[%clk 0:02:59]} 5. Qxf3 {[%clk 0:03:02]}  e6 {[%clk 0:02:45]} 6. Be2 {[%clk 0:03:01]}  Bc5 {[%clk 0:02:45]} 7. O-O {[%clk 0:03:01]}  Nd7 {[%clk 0:02:45]} 8. exd5 {[%clk 0:03:02]}  exd5 {[%clk 0:02:42]} 9. Re1 {[%clk 0:02:59]}  Ne7 {[%clk 0:02:42]} 10. Na4 {[%clk 0:02:59]}  Bd6 {[%clk 0:02:34]} 11. d4 {[%clk 0:03:00]}  O-O {[%clk 0:02:34]} 12. Bd3 {[%clk 0:03:00]}  Ng6 {[%clk 0:02:31]} 13. Bd2 {[%clk 0:02:52]}  Qf6 {[%clk 0:02:28]} 14. Qg4 {[%clk 0:02:48]}  Nb6 {[%clk 0:02:13]} 15. Nxb6 {[%clk 0:01:42]}  axb6 {[%clk 0:02:14]} 16. Bg5 {[%clk 0:01:42]}  h5 {[%clk 0:01:53]} 17. Qxh5 {[%clk 0:01:41]}  Qxd4 {[%clk 0:01:51]} 18. Be3 {[%clk 0:01:41]}  Qe5 {[%clk 0:00:56]} 19. Qxe5 {[%clk 0:01:33]}  Nxe5 {[%clk 0:00:57]} 20. Bxb6 {[%clk 0:01:33]}  Nxd3 {[%clk 0:00:19]} 21. cxd3 {[%clk 0:01:34]}  c5 {[%clk 0:00:17]} 22. Rec1 {[%clk 0:01:33]}  Rfc8 {[%clk 0:00:17]} 23. a4 {[%clk 0:01:32]}  Rc6 {[%clk 0:00:13]} 24. a5 {[%clk 0:01:32]}  Be5 {[%clk 0:00:12]} 25. Rab1 {[%clk 0:01:09]}  Bd4 {[%clk 0:00:10]} 26. b4 {[%clk 0:01:02]}  Rac8 {[%clk 0:00:08]} 27. Kf1 {[%clk 0:00:43]}  Rf6 {[%clk 0:00:06]} 28. f3 {[%clk 0:00:44]}  Be3 {[%clk 0:00:04]} 29. Rc2 {[%clk 0:00:35]}  Rfc6 {[%clk 0:00:04]} 30. bxc5 {[%clk 0:00:21]}  Bxc5 {[%clk 0:00:03]} 31. Rbc1 {[%clk 0:00:20]}  Bxb6 {[%clk 0:00:02]} 32. Rxc6 {[%clk 0:00:20]}  bxc6 {[%clk 0:00:03]} 33. axb6 {[%clk 0:00:21]}  c5 {[%clk 0:00:02]} 34. b7 {[%clk 0:00:15]}  Rb8 {[%clk 0:00:03]} 35. Rxc5 {[%clk 0:00:16]}  d4 {[%clk 0:00:00]} 36. Rc8+ {[%clk 0:00:16]} 1-0


[Site "https://www.chess.com"]

[Event "Titled Tuesday Blitz May 16 Early 2023"]
[White "liwadas82"]
[Black "Jakubowski, Krzysztof"]
[BlackFideId "1112848"]
[WhiteElo "2452"]
[BlackElo "2359"]
[Result "0-1"]
[Round "08"]
[TimeControl "180+2"]
[Date "2023.05.16"]
[WhiteClock "0:00:07"]
[BlackClock "0:00:09"]

1. e4 {[%clk 0:03:00]}  c5 {[%clk 0:02:58]} 2. Nf3 {[%clk 0:03:00]}  e6 {[%clk 0:02:58]} 3. d4 {[%clk 0:03:00]}  cxd4 {[%clk 0:02:57]} 4. Nxd4 {[%clk 0:03:01]}  a6 {[%clk 0:02:57]} 5. Nc3 {[%clk 0:03:01]}  b5 {[%clk 0:02:56]} 6. Bd3 {[%clk 0:03:01]}  Ne7 {[%clk 0:02:53]} 7. O-O {[%clk 0:03:00]}  Nec6 {[%clk 0:02:53]} 8. Nb3 {[%clk 0:02:55]}  d6 {[%clk 0:02:38]} 9. Qe2 {[%clk 0:02:55]}  Nd7 {[%clk 0:02:38]} 10. a4 {[%clk 0:02:54]}  b4 {[%clk 0:02:37]} 11. Nd1 {[%clk 0:02:53]}  Be7 {[%clk 0:02:32]} 12. Ne3 {[%clk 0:02:53]}  O-O {[%clk 0:02:32]} 13. Bd2 {[%clk 0:02:52]}  Nde5 {[%clk 0:02:29]} 14. f4 {[%clk 0:02:49]}  Nxd3 {[%clk 0:02:26]} 15. cxd3 {[%clk 0:02:50]}  a5 {[%clk 0:02:21]} 16. Kh1 {[%clk 0:02:43]}  Bd7 {[%clk 0:02:19]} 17. Nc4 {[%clk 0:02:34]}  Qb8 {[%clk 0:02:09]} 18. Be3 {[%clk 0:02:32]}  Ra6 {[%clk 0:02:07]} 19. d4 {[%clk 0:02:23]}  d5 {[%clk 0:01:44]} 20. Ne5 {[%clk 0:02:23]}  Nxe5 {[%clk 0:01:41]} 21. dxe5 {[%clk 0:02:15]}  Qa8 {[%clk 0:01:36]} 22. exd5 {[%clk 0:02:13]}  exd5 {[%clk 0:01:36]} 23. f5 {[%clk 0:02:13]}  Re8 {[%clk 0:01:27]} 24. Bc5 {[%clk 0:02:12]}  d4 {[%clk 0:01:15]} 25. Bxe7 {[%clk 0:02:07]}  Rxe7 {[%clk 0:01:15]} 26. Nxd4 {[%clk 0:02:06]}  Rh6 {[%clk 0:01:05]} 27. b3 {[%clk 0:01:54]}  Qd5 {[%clk 0:01:00]} 28. Nf3 {[%clk 0:01:28]}  Bxf5 {[%clk 0:00:53]} 29. Rad1 {[%clk 0:01:27]}  Qa8 {[%clk 0:00:49]} 30. Nd4 {[%clk 0:01:20]}  Be4 {[%clk 0:00:40]} 31. Nb5 {[%clk 0:01:06]}  Bc6 {[%clk 0:00:18]} 32. Nd6 {[%clk 0:00:57]}  Rg6 {[%clk 0:00:15]} 33. Rf2 {[%clk 0:00:53]}  h6 {[%clk 0:00:15]} 34. Rdf1 {[%clk 0:00:52]}  Bd5 {[%clk 0:00:14]} 35. Nf5 {[%clk 0:00:36]}  Ree6 {[%clk 0:00:10]} 36. Nd4 {[%clk 0:00:33]}  Re8 {[%clk 0:00:09]} 37. Nb5 {[%clk 0:00:19]}  Rxe5 {[%clk 0:00:08]} 38. Qxe5 {[%clk 0:00:17]}  Bxg2+ {[%clk 0:00:08]} 39. Kg1 {[%clk 0:00:16]}  Bh3+ {[%clk 0:00:08]} 40. Qg3 {[%clk 0:00:14]}  Rxg3+ {[%clk 0:00:09]} 41. hxg3 {[%clk 0:00:15]}  Bxf1 {[%clk 0:00:09]} 42. Kxf1 {[%clk 0:00:15]}  Qd5 {[%clk 0:00:09]} 43. Re2 {[%clk 0:00:13]}  Qd1+ {[%clk 0:00:08]} 44. Kf2 {[%clk 0:00:13]}  Qxb3 {[%clk 0:00:09]} 45. Nd4 {[%clk 0:00:13]}  Qd5 {[%clk 0:00:09]} 46. Nf3 {[%clk 0:00:13]}  Qc6 {[%clk 0:00:08]} 47. Rd2 {[%clk 0:00:13]}  Qxa4 {[%clk 0:00:08]} 48. Nd4 {[%clk 0:00:13]}  Qd7 {[%clk 0:00:07]} 49. Ke3 {[%clk 0:00:13]}  Qe7+ {[%clk 0:00:07]} 50. Kd3 {[%clk 0:00:13]}  a4 {[%clk 0:00:07]} 51. Re2 {[%clk 0:00:14]}  Qd6 {[%clk 0:00:07]} 52. Re8+ {[%clk 0:00:13]}  Kh7 {[%clk 0:00:07]} 53. Ra8 {[%clk 0:00:13]}  Qxg3+ {[%clk 0:00:07]} 54. Kc4 {[%clk 0:00:13]}  Qc3+ {[%clk 0:00:07]} 55. Kd5 {[%clk 0:00:13]}  b3 {[%clk 0:00:08]} 56. Rxa4 {[%clk 0:00:10]}  Qd3 {[%clk 0:00:07]} 57. Rb4 {[%clk 0:00:10]}  h5 {[%clk 0:00:07]} 58. Rxb3 {[%clk 0:00:10]}  Qd1 {[%clk 0:00:07]} 59. Re3 {[%clk 0:00:09]}  g6 {[%clk 0:00:08]} 60. Ke4 {[%clk 0:00:10]}  Kg7 {[%clk 0:00:08]} 61. Nf3 {[%clk 0:00:10]}  Qh1 {[%clk 0:00:08]} 62. Kf4 {[%clk 0:00:10]}  Qg2 {[%clk 0:00:08]} 63. Ne5 {[%clk 0:00:08]}  Qf2+ {[%clk 0:00:08]} 64. Rf3 {[%clk 0:00:08]}  Qd4+ {[%clk 0:00:08]} 65. Kg3 {[%clk 0:00:08]}  Qxe5+ {[%clk 0:00:08]} 66. Kf2 {[%clk 0:00:09]}  Qe4 {[%clk 0:00:08]} 67. Re3 {[%clk 0:00:09]}  Qxe3+ {[%clk 0:00:09]} 68. Kxe3 {[%clk 0:00:07]}  Kf6 {[%clk 0:00:09]} 0-1


[Site "https://www.chess.com"]

[Event "Titled Tuesday Blitz May 16 Early 2023"]
[White "Womacka, Mathias"]
[Black "Jaskolka, Tomasz"]
[WhiteFideId "4611390"]
[BlackFideId "1170791"]
[WhiteElo "2377"]
[BlackElo "2155"]
[Result "0-1"]
[Round "08"]
[TimeControl "180+2"]
[Date "2023.05.16"]
[WhiteClock "0:00:00"]
[BlackClock "0:00:15"]

1. e4 {[%clk 0:03:00]}  d5 {[%clk 0:03:00]} 2. exd5 {[%clk 0:02:59]}  Nf6 {[%clk 0:03:00]} 3. Nf3 {[%clk 0:02:57]}  Bg4 {[%clk 0:02:58]} 4. Bb5+ {[%clk 0:02:52]}  Nbd7 {[%clk 0:02:56]} 5. c4 {[%clk 0:02:49]}  a6 {[%clk 0:02:52]} 6. Ba4 {[%clk 0:02:48]}  b5 {[%clk 0:02:52]} 7. cxb5 {[%clk 0:02:47]}  Nxd5 {[%clk 0:02:53]} 8. bxa6 {[%clk 0:02:42]}  Rxa6 {[%clk 0:02:50]} 9. Nc3 {[%clk 0:02:37]}  Re6+ {[%clk 0:02:48]} 10. Kf1 {[%clk 0:02:33]}  Nf4 {[%clk 0:02:45]} 11. d4 {[%clk 0:02:30]}  Ng6 {[%clk 0:02:38]} 12. h3 {[%clk 0:02:24]}  Bf5 {[%clk 0:02:31]} 13. d5 {[%clk 0:02:17]}  Rd6 {[%clk 0:02:26]} 14. Nd4 {[%clk 0:02:15]}  e6 {[%clk 0:02:22]} 15. g4 {[%clk 0:01:45]}  Rxd5 {[%clk 0:01:18]} 16. gxf5 {[%clk 0:01:38]}  Qa8 {[%clk 0:01:00]} 17. Bc6 {[%clk 0:01:22]}  Qa6+ {[%clk 0:00:55]} 18. Bb5 {[%clk 0:01:13]}  Qd6 {[%clk 0:00:50]} 19. Nxd5 {[%clk 0:01:08]}  Qxd5 {[%clk 0:00:50]} 20. Rg1 {[%clk 0:00:53]}  Ne5 {[%clk 0:00:49]} 21. fxe6 {[%clk 0:00:46]}  fxe6 {[%clk 0:00:49]} 22. Be3 {[%clk 0:00:39]}  Bd6 {[%clk 0:00:46]} 23. a4 {[%clk 0:00:29]}  O-O {[%clk 0:00:44]} 24. Qh5 {[%clk 0:00:22]}  Nf6 {[%clk 0:00:36]} 25. Qg5 {[%clk 0:00:20]}  Rf7 {[%clk 0:00:36]} 26. Rc1 {[%clk 0:00:17]}  h6 {[%clk 0:00:30]} 27. Qxh6 {[%clk 0:00:16]}  Nfg4 {[%clk 0:00:30]} 28. Qg5 {[%clk 0:00:13]}  Nh2+ {[%clk 0:00:23]} 29. Ke2 {[%clk 0:00:12]}  Nhf3 {[%clk 0:00:24]} 30. Nxf3 {[%clk 0:00:11]}  Qxf3+ {[%clk 0:00:24]} 31. Kd2 {[%clk 0:00:11]}  Qe4 {[%clk 0:00:23]} 32. Qg2 {[%clk 0:00:06]}  Nf3+ {[%clk 0:00:23]} 33. Ke2 {[%clk 0:00:05]}  Nd4+ {[%clk 0:00:23]} 34. Kd2 {[%clk 0:00:05]}  Bb4+ {[%clk 0:00:23]} 35. Kd1 {[%clk 0:00:04]}  Nf3 {[%clk 0:00:18]} 36. Qg4 {[%clk 0:00:03]}  Rd7+ {[%clk 0:00:16]} 37. Ke2 {[%clk 0:00:00]}  Rd2+ {[%clk 0:00:15]} 0-1


[Site "https://www.chess.com"]

[Event "Titled Tuesday Blitz May 16 Early 2023"]
[White "Kielinkei"]
[Black "Mortazavi, Ali"]
[BlackFideId "401323"]
[WhiteElo "2432"]
[BlackElo "2339"]
[Result "0-1"]
[Round "08"]
[TimeControl "180+2"]
[Date "2023.05.16"]
[WhiteClock "0:00:00"]
[BlackClock "0:00:51"]

1. e4 {[%clk 0:02:59]}  c6 {[%clk 0:02:58]} 2. d4 {[%clk 0:02:59]}  d5 {[%clk 0:02:59]} 3. Nc3 {[%clk 0:03:00]}  dxe4 {[%clk 0:02:58]} 4. Nxe4 {[%clk 0:03:00]}  Nf6 {[%clk 0:02:59]} 5. Nxf6+ {[%clk 0:03:00]}  exf6 {[%clk 0:03:00]} 6. Be3 {[%clk 0:03:01]}  Bd6 {[%clk 0:03:00]} 7. Bd3 {[%clk 0:02:59]}  O-O {[%clk 0:03:01]} 8. Ne2 {[%clk 0:02:59]}  Re8 {[%clk 0:02:59]} 9. O-O {[%clk 0:02:59]}  Nd7 {[%clk 0:02:59]} 10. c4 {[%clk 0:02:59]}  Nf8 {[%clk 0:02:59]} 11. a3 {[%clk 0:02:50]}  a5 {[%clk 0:02:53]} 12. Nc3 {[%clk 0:02:41]}  Ng6 {[%clk 0:02:51]} 13. Re1 {[%clk 0:02:28]}  Bc7 {[%clk 0:02:47]} 14. c5 {[%clk 0:02:06]}  Be6 {[%clk 0:02:42]} 15. Be4 {[%clk 0:01:32]}  f5 {[%clk 0:02:29]} 16. Bf3 {[%clk 0:01:32]}  f4 {[%clk 0:02:08]} 17. Bc1 {[%clk 0:01:29]}  Nh4 {[%clk 0:02:06]} 18. Be4 {[%clk 0:00:42]}  Qg5 {[%clk 0:01:32]} 19. g3 {[%clk 0:00:35]}  Rad8 {[%clk 0:01:31]} 20. Kh1 {[%clk 0:00:30]}  Ng6 {[%clk 0:01:21]} 21. Rg1 {[%clk 0:00:21]}  Qf6 {[%clk 0:01:17]} 22. d5 {[%clk 0:00:09]}  cxd5 {[%clk 0:01:11]} 23. Bf3 {[%clk 0:00:09]}  fxg3 {[%clk 0:01:06]} 24. fxg3 {[%clk 0:00:08]}  Ne5 {[%clk 0:00:58]} 25. Bg2 {[%clk 0:00:08]}  Ng4 {[%clk 0:00:56]} 26. Rf1 {[%clk 0:00:03]}  Nf2+ {[%clk 0:00:55]} 27. Rxf2 {[%clk 0:00:03]}  Qxf2 {[%clk 0:00:55]} 28. Ne2 {[%clk 0:00:00]}  Bg4 {[%clk 0:00:51]} 0-1


[Site "https://www.chess.com"]

[Event "Titled Tuesday Blitz May 16 Early 2023"]
[White "LangesNasenhaar"]
[Black "Seinw1"]
[WhiteElo "2430"]
[BlackElo "2547"]
[Result "0-1"]
[Round "08"]
[TimeControl "180+2"]
[Date "2023.05.16"]
[WhiteClock "0:00:00"]
[BlackClock "0:00:10"]

1. d4 {[%clk 0:03:00]}  Nf6 {[%clk 0:02:59]} 2. Nc3 {[%clk 0:03:01]}  d5 {[%clk 0:02:59]} 3. Bf4 {[%clk 0:03:01]}  a6 {[%clk 0:02:56]} 4. e3 {[%clk 0:03:01]}  c5 {[%clk 0:02:55]} 5. dxc5 {[%clk 0:03:00]}  Nc6 {[%clk 0:02:53]} 6. Nf3 {[%clk 0:02:57]}  e6 {[%clk 0:02:51]} 7. Na4 {[%clk 0:02:57]}  Bxc5 {[%clk 0:02:49]} 8. Nxc5 {[%clk 0:02:58]}  Qa5+ {[%clk 0:02:49]} 9. c3 {[%clk 0:02:58]}  Qxc5 {[%clk 0:02:49]} 10. Bd3 {[%clk 0:02:56]}  O-O {[%clk 0:02:48]} 11. O-O {[%clk 0:02:57]}  h6 {[%clk 0:02:47]} 12. Qe2 {[%clk 0:02:46]}  b5 {[%clk 0:02:27]} 13. Ne5 {[%clk 0:02:46]}  Bb7 {[%clk 0:02:21]} 14. Rac1 {[%clk 0:02:26]}  Rac8 {[%clk 0:02:18]} 15. h3 {[%clk 0:02:24]}  Rfd8 {[%clk 0:01:50]} 16. Rfd1 {[%clk 0:02:14]}  Nxe5 {[%clk 0:01:40]} 17. Bxe5 {[%clk 0:02:14]}  Nd7 {[%clk 0:01:40]} 18. Bg3 {[%clk 0:02:05]}  f5 {[%clk 0:01:36]} 19. Bh4 {[%clk 0:01:53]}  Rf8 {[%clk 0:01:34]} 20. Qh5 {[%clk 0:01:41]}  Rf7 {[%clk 0:01:19]} 21. Bf1 {[%clk 0:01:29]}  e5 {[%clk 0:01:13]} 22. Kh2 {[%clk 0:01:14]}  Qc6 {[%clk 0:01:10]} 23. Rd2 {[%clk 0:01:03]}  g5 {[%clk 0:01:10]} 24. Bxg5 {[%clk 0:00:56]}  hxg5 {[%clk 0:01:10]} 25. Qxg5+ {[%clk 0:00:57]}  Kf8 {[%clk 0:01:06]} 26. Rcd1 {[%clk 0:00:55]}  Qf6 {[%clk 0:01:04]} 27. Qh5 {[%clk 0:00:51]}  Ke7 {[%clk 0:00:59]} 28. a4 {[%clk 0:00:38]}  Rh8 {[%clk 0:00:57]} 29. Qf3 {[%clk 0:00:34]}  Bc6 {[%clk 0:00:51]} 30. axb5 {[%clk 0:00:31]}  axb5 {[%clk 0:00:50]} 31. Rxd5 {[%clk 0:00:28]}  Bxd5 {[%clk 0:00:45]} 32. Qxd5 {[%clk 0:00:29]}  Qe6 {[%clk 0:00:43]} 33. Qxb5 {[%clk 0:00:26]}  e4 {[%clk 0:00:31]} 34. Qb4+ {[%clk 0:00:15]}  Kf6 {[%clk 0:00:30]} 35. Rd6 {[%clk 0:00:12]}  Ne5 {[%clk 0:00:20]} 36. Rxe6+ {[%clk 0:00:12]}  Kxe6 {[%clk 0:00:21]} 37. Bc4+ {[%clk 0:00:12]}  Nxc4 {[%clk 0:00:21]} 38. Qxc4+ {[%clk 0:00:13]}  Ke7 {[%clk 0:00:21]} 39. Qc5+ {[%clk 0:00:11]}  Ke6 {[%clk 0:00:18]} 40. b4 {[%clk 0:00:11]}  Rd8 {[%clk 0:00:16]} 41. Qc4+ {[%clk 0:00:08]}  Kf6 {[%clk 0:00:17]} 42. Qc6+ {[%clk 0:00:07]}  Kg7 {[%clk 0:00:17]} 43. b5 {[%clk 0:00:08]}  Rd2 {[%clk 0:00:14]} 44. b6 {[%clk 0:00:06]}  Rb2 {[%clk 0:00:13]} 45. c4 {[%clk 0:00:07]}  Rxf2 {[%clk 0:00:11]} 46. c5 {[%clk 0:00:00]}  f4 {[%clk 0:00:10]} 0-1


[Site "https://www.chess.com"]

[Event "Titled Tuesday Blitz May 16 Early 2023"]
[White "Santarius, Erik"]
[Black "Sai Han Thiha"]
[WhiteFideId "2025817"]
[BlackFideId "13012290"]
[WhiteElo "2300"]
[BlackElo "1954"]
[Result "0-1"]
[Round "08"]
[TimeControl "180+2"]
[Date "2023.05.16"]
[WhiteClock "0:00:13"]
[BlackClock "0:00:11"]

1. e4 {[%clk 0:02:59]}  c6 {[%clk 0:03:00]} 2. d4 {[%clk 0:02:58]}  d5 {[%clk 0:03:01]} 3. exd5 {[%clk 0:02:58]}  cxd5 {[%clk 0:03:01]} 4. Bd3 {[%clk 0:02:58]}  Nc6 {[%clk 0:03:01]} 5. c3 {[%clk 0:02:58]}  Nf6 {[%clk 0:03:02]} 6. h3 {[%clk 0:02:58]}  g6 {[%clk 0:03:02]} 7. Nf3 {[%clk 0:02:57]}  Bf5 {[%clk 0:03:03]} 8. Be2 {[%clk 0:02:56]}  Bg7 {[%clk 0:02:55]} 9. O-O {[%clk 0:02:56]}  O-O {[%clk 0:02:56]} 10. Bf4 {[%clk 0:02:49]}  Rc8 {[%clk 0:02:45]} 11. Nbd2 {[%clk 0:02:48]}  a6 {[%clk 0:02:42]} 12. a4 {[%clk 0:02:46]}  Qb6 {[%clk 0:02:36]} 13. Qb3 {[%clk 0:02:44]}  Qxb3 {[%clk 0:02:27]} 14. Nxb3 {[%clk 0:02:43]}  Ne4 {[%clk 0:02:27]} 15. Nfd2 {[%clk 0:02:31]}  e5 {[%clk 0:02:12]} 16. dxe5 {[%clk 0:02:29]}  Nxe5 {[%clk 0:02:10]} 17. Bxe5 {[%clk 0:02:14]}  Bxe5 {[%clk 0:02:10]} 18. Nf3 {[%clk 0:02:15]}  Bf6 {[%clk 0:02:05]} 19. Nfd4 {[%clk 0:02:14]}  Bd7 {[%clk 0:02:04]} 20. Bg4 {[%clk 0:01:57]}  Bxg4 {[%clk 0:01:49]} 21. hxg4 {[%clk 0:01:57]}  Nd6 {[%clk 0:01:34]} 22. Rfd1 {[%clk 0:01:48]}  Nc4 {[%clk 0:01:33]} 23. Rab1 {[%clk 0:01:49]}  Rfe8 {[%clk 0:01:26]} 24. Kf1 {[%clk 0:01:49]}  Re4 {[%clk 0:01:22]} 25. Nc2 {[%clk 0:01:06]}  Rxg4 {[%clk 0:01:16]} 26. Rxd5 {[%clk 0:01:02]}  Kg7 {[%clk 0:01:04]} 27. Kg1 {[%clk 0:00:44]}  Nb6 {[%clk 0:01:01]} 28. Rd6 {[%clk 0:00:27]}  Nxa4 {[%clk 0:01:00]} 29. Ncd4 {[%clk 0:00:26]}  Nc5 {[%clk 0:00:54]} 30. Nxc5 {[%clk 0:00:25]}  Rxc5 {[%clk 0:00:55]} 31. Rd1 {[%clk 0:00:23]}  Rh5 {[%clk 0:00:41]} 32. g3 {[%clk 0:00:18]}  Bxd4 {[%clk 0:00:26]} 33. R1xd4 {[%clk 0:00:19]}  Rxd4 {[%clk 0:00:26]} 34. Rxd4 {[%clk 0:00:20]}  Rb5 {[%clk 0:00:26]} 35. b4 {[%clk 0:00:20]}  Kf6 {[%clk 0:00:24]} 36. Rd7 {[%clk 0:00:19]}  Ke6 {[%clk 0:00:23]} 37. Rc7 {[%clk 0:00:20]}  h5 {[%clk 0:00:23]} 38. f4 {[%clk 0:00:19]}  f6 {[%clk 0:00:22]} 39. Kf2 {[%clk 0:00:20]}  g5 {[%clk 0:00:17]} 40. fxg5 {[%clk 0:00:19]}  fxg5 {[%clk 0:00:18]} 41. Kf3 {[%clk 0:00:18]}  Kf5 {[%clk 0:00:18]} 42. Rf7+ {[%clk 0:00:18]}  Kg6 {[%clk 0:00:19]} 43. Rc7 {[%clk 0:00:18]}  Rb6 {[%clk 0:00:18]} 44. Rc8 {[%clk 0:00:18]}  Rf6+ {[%clk 0:00:16]} 45. Kg2 {[%clk 0:00:18]}  Rc6 {[%clk 0:00:15]} 46. Rg8+ {[%clk 0:00:17]}  Kf5 {[%clk 0:00:14]} 47. Rb8 {[%clk 0:00:15]}  Rxc3 {[%clk 0:00:12]} 48. Ra8 {[%clk 0:00:16]}  Kg4 {[%clk 0:00:12]} 49. Rb8 {[%clk 0:00:16]}  Rc2+ {[%clk 0:00:11]} 50. Kf1 {[%clk 0:00:13]}  Kxg3 {[%clk 0:00:11]} 0-1


[Site "https://www.chess.com"]